fUST/lending_fUST_20250511
["ID","MTS","AMOUNT","RATE_DAILY","PERIOD"]
[360622988,1746906672258,-455.9,0.0001041,2]
[360622989,1746906672269,-728.41,0.0001041,2]
[360622990,1746906672279,-903.04,0.0001041,2]
[360622991,1746906672289,-4052.84,0.0001041,2]
[360622992,1746906672299,-1722.78,0.0001041,2]
[360622993,1746906672309,-400.0,0.0001041,2]
[360622994,1746906672319,-400.0,0.0001041,2]
[360622995,1746906672330,-511.63795237,0.0001041,2]
[360622996,1746906672340,-961.45,0.0001041,2]
[360622997,1746906672350,-400.0,0.0001041,2]
[360622998,1746906672359,-400.0,0.0001041,2]
[360622999,1746906672369,-513.69,0.0001041,2]
[360623000,1746906672378,-738.49,0.0001041,2]
[360623001,1746906672388,-1620.11,0.0001041,2]
[360623002,1746906672398,-1522.1,0.0001041,2]
[360623003,1746906672408,-855.77,0.0001041,2]
[360623004,1746906672418,-3617.99,0.0001041,2]
[360623005,1746906672427,-400.0,0.0001041,2]
[360623006,1746906672437,-1039.2,0.0001041,2]
[360623007,1746906672446,-828.14,0.0001041,2]
[360623008,1746906672456,-1521.55,0.0001041,2]
[360623009,1746906672465,-400.0,0.0001041,2]
[360623010,1746906672475,-483.77,0.0001041,2]
[360623011,1746906672485,-913.03,0.0001041,2]
[360623012,1746906672496,-2047.93,0.0001041,2]
[360623013,1746906672506,-400.0,0.0001041,2]
[360623014,1746906672515,-794.3,0.0001041,2]
[360623015,1746906672525,-974.46,0.0001041,2]
[360623016,1746906672535,-720.62,0.0001041,2]
[360623017,1746906672545,-400.0,0.0001041,2]
[360623018,1746906672555,-1418.47,0.0001041,2]
[360623019,1746906672565,-400.0,0.0001041,2]
[360623020,1746906672575,-400.0,0.0001041,2]
[360623021,1746906672586,-863.31,0.0001041,2]
[360623022,1746906672596,-480.68,0.0001041,2]
[360623023,1746906672607,-400.0,0.0001041,2]
[360623024,1746906672617,-403.98330489,0.0001041,2]
[360623025,1746906672628,-1863.48,0.0001041,2]
[360623026,1746906672638,-619.24,0.0001041,2]
[360623027,1746906672648,-400.0,0.0001041,2]
[360623028,1746906672658,-1742.97,0.0001041,2]
[360623029,1746906672669,-400.0,0.0001041,2]
[360623030,1746906672679,-499.88,0.0001041,2]
[360623031,1746906672690,-400.0,0.0001041,2]
[360623032,1746906672700,-400.0,0.0001041,2]
[360623033,1746906672709,-629.14,0.0001041,2]
[360623034,1746906672719,-1689.1,0.0001041,2]
[360623035,1746906672728,-1471.66,0.0001041,2]
[360623036,1746906672738,-400.0,0.0001041,2]
[360623037,1746906672748,-400.0,0.0001041,2]
[360623038,1746906672759,-1375.35,0.0001041,2]
[360623039,1746906672769,-4432.98,0.0001041,2]
[360623040,1746906672778,-484.23,0.0001041,2]
[360623041,1746906672787,-719.53,0.0001041,2]
[360623042,1746906672797,-400.0,0.0001041,2]
[360623043,1746906672806,-1921.61,0.0001041,2]
[360623044,1746906672815,-400.0,0.0001041,2]
[360623045,1746906672825,-881.79,0.0001041,2]
[360623046,1746906672834,-739.18,0.0001041,2]
[360623047,1746906672843,-922.29,0.0001041,2]
[360623048,1746906672853,-2351.73,0.0001041,2]
[360623049,1746906672862,-893.91,0.0001041,2]
[360623050,1746906672871,-2022.22,0.0001041,2]
[360623051,1746906672881,-3693.92,0.0001041,2]
[360623052,1746906672890,-676.37,0.0001041,2]
[360623053,1746906672900,-1891.95,0.0001041,2]
[360623054,1746906672910,-970.32,0.0001041,2]
[360623055,1746906672919,-400.0,0.0001041,2]
[360623056,1746906672930,-1140.17,0.0001041,2]
[360623057,1746906672939,-436.7,0.0001041,2]
[360623058,1746906672949,-6166.4,0.0001041,2]
[360623059,1746906672959,-1278.01,0.0001041,2]
[360623060,1746906672968,-400.0,0.0001041,2]
[360623061,1746906672978,-416.85,0.0001041,2]
[360623062,1746906672987,-427.37,0.0001041,2]
[360623063,1746906672997,-1347.82,0.0001041,2]
[360623064,1746906673007,-793.93,0.0001041,2]
[360623065,1746906673016,-789.56,0.0001041,2]
[360623066,1746906673027,-922.84,0.0001041,2]
[360623067,1746906673036,-400.0,0.0001041,2]
[360623068,1746906673045,-400.0,0.0001041,2]
[360623069,1746906673055,-400.0,0.0001041,2]
[360623070,1746906673064,-445.82,0.0001041,2]
[360623071,1746906673074,-400.0,0.0001041,2]
[360623072,1746906673083,-1409.07,0.0001041,2]
[360623073,1746906673141,-1926.65,0.0001041,2]
[360623074,1746906673151,-2326.13,0.0001041,2]
[360623075,1746906673161,-8310.69,0.0001041,2]
[360623076,1746906673170,-400.0,0.0001041,2]
[360623077,1746906673180,-2542.91,0.0001041,2]
[360623078,1746906673191,-2015.99,0.0001041,2]
[360623079,1746906673200,-3912.6,0.0001041,2]
[360623080,1746906673210,-400.0,0.0001041,2]
[360623081,1746906673219,-447.46,0.0001041,2]
[360623082,1746906673228,-400.0,0.0001041,2]
[360623083,1746906673238,-2641.95,0.0001041,2]
[360623084,1746906673248,-2579.44,0.0001041,2]
[360623085,1746906673258,-705.43,0.0001041,2]
[360623086,1746906673267,-512.02,0.0001041,2]
[360623087,1746906673276,-661.8,0.0001041,2]
[360623088,1746906673285,-400.0,0.0001041,2]
[360623089,1746906673295,-557.25,0.0001041,2]
[360623090,1746906673304,-2704.17,0.0001041,2]
[360623091,1746906673313,-250.0,0.00010411,2]
[360623092,1746906673322,-12619.28597579,0.00010465,2]
[360623093,1746906673331,-422.13686889,0.00010465,2]
[360623094,1746906673340,-160.0,0.00010465,2]
[360623095,1746906673350,-160.0,0.00010465,2]
[360623096,1746906673359,-842.34118046,0.00010465,2]
[360623097,1746906673369,-160.0,0.00010465,2]
[360623098,1746906673379,-160.0,0.00010465,2]
[360623099,1746906673388,-212.13671436,0.00010465,2]
[360623100,1746906673397,-1400.0,0.00010478,2]
[360623101,1746906673406,-542.11629846,0.000105,2]
[360623102,1746906673416,-613.79811131,0.00010508,2]
[360623103,1746906673425,-613.79811131,0.00010508,2]
[360623104,1746906673436,-151.0,0.00010612,2]
[360623105,1746906673446,-12500.0,0.0001062,2]
[360623106,1746906673456,-12500.0,0.00010629,2]
[360623107,1746906673466,-12500.0,0.00010629,2]
[360623108,1746906673475,-12500.0,0.00010638,2]
[360623109,1746906673485,-12500.0,0.00010638,2]
[360623110,1746906673496,-30214.48381671,0.00010645,2]
[360623111,1746906673506,-12500.0,0.00010647,2]
[360623112,1746906673515,-12500.0,0.00010647,2]
[360623113,1746906673525,-12500.0,0.00010655,2]
[360623114,1746906673535,-12500.0,0.00010655,2]
[360623115,1746906673545,-12500.0,0.00010664,2]
[360623116,1746906673557,-12500.0,0.00010664,2]
[360623117,1746906673567,-1898.77113981,0.00010673,2]
[360623118,1746906673576,-12500.0,0.00010673,2]
[360623119,1746906673586,-12500.0,0.00010673,2]
[360623120,1746906673595,-457.42,0.00010684,2]
[360623121,1746906673604,-525.79,0.00010684,2]
[360623122,1746906673614,-400.0,0.00010684,2]
[360623123,1746906673623,-400.0,0.00010684,2]
[360623124,1746906673634,-400.0,0.00010684,2]
[360623125,1746906673643,-434.68,0.00010684,2]
[360623126,1746906673652,-400.0,0.00010684,2]
[360623127,1746906673662,-400.0,0.00010684,2]
[360623128,1746906673671,-478.83,0.00010684,2]
[360623129,1746906673681,-832.17,0.00010684,2]
[360623130,1746906673690,-400.0,0.00010684,2]
[360623131,1746906673699,-400.0,0.00010684,2]
[360623132,1746906673709,-400.0,0.00010684,2]
[360623133,1746906673718,-400.0,0.00010684,2]
[360623134,1746906673728,-824.8,0.00010684,2]
[360623135,1746906673737,-400.0,0.00010684,2]
[360623136,1746906673748,-739.55,0.00010684,2]
[360623137,1746906673758,-400.0,0.00010684,2]
[360623138,1746906673768,-1274.07,0.00010684,2]
[360623139,1746906673778,-954.18,0.00010684,2]
[360623140,1746906673787,-985.97,0.00010684,2]
[360623141,1746906673796,-400.0,0.00010684,2]
[360623142,1746906673805,-400.0,0.00010684,2]
[360623143,1746906673815,-453.4,0.00010684,2]
[360623144,1746906673825,-400.0,0.00010684,2]
[360623145,1746906673835,-400.0,0.00010684,2]
[360623146,1746906673844,-400.0,0.00010684,2]
[360623147,1746906673854,-504.97,0.00010684,2]
[360623148,1746906673864,-151.0,0.00010684,2]
[360623149,1746906673874,-446.99,0.00010684,2]
[360623150,1746906673884,-270.10437043,0.00010684,2]
[360623151,1746906673894,-722.59,0.00010684,2]
[360623152,1746906673904,-400.0,0.00010684,2]
[360623153,1746906673914,-400.0,0.00010684,2]
[360623154,1746906673924,-400.0,0.00010684,2]
[360623155,1746906673934,-640.39,0.00010684,2]
[360623156,1746906673943,-400.0,0.00010684,2]
[360623157,1746906673953,-400.0,0.00010684,2]
[360623158,1746906673963,-522.88,0.00010684,2]
[360623159,1746906673972,-400.0,0.00010684,2]
[360623160,1746906673982,-427.35,0.00010684,2]
[360623161,1746906673992,-539.65,0.00010684,2]
[360623162,1746906674002,-562.01,0.00010684,2]
[360623163,1746906674012,-400.0,0.00010684,2]
[360623164,1746906674022,-400.0,0.00010684,2]
[360623165,1746906674032,-1026.92,0.00010684,2]
[360623166,1746906674042,-400.0,0.00010684,2]
[360623167,1746906674052,-400.0,0.00010684,2]
[360623168,1746906674062,-1419.13,0.00010684,2]
[360623169,1746906674071,-489.84,0.00010684,2]
[360623170,1746906674082,-953.05,0.00010684,2]
[360623171,1746906674092,-471.81238099,0.00010684,2]
[360623172,1746906674102,-695.87,0.00010684,2]
[360623173,1746906674116,-400.0,0.00010684,2]
[360623174,1746906674128,-400.0,0.00010684,2]
[360623175,1746906674138,-1151.25,0.00010684,2]
[360623176,1746906674148,-2025.76,0.00010684,2]
[360623177,1746906674159,-699.78,0.00010684,2]
[360623178,1746906674168,-400.0,0.00010684,2]
[360623179,1746906674178,-435.97,0.00010684,2]
[360623180,1746906674189,-400.0,0.00010684,2]
[360623181,1746906674199,-1951.67,0.00010684,2]
[360623182,1746906674209,-400.0,0.00010684,2]
[360623183,1746906674219,-781.59,0.00010684,2]
[360623184,1746906674229,-615.73,0.00010684,2]
[360623185,1746906674239,-400.0,0.00010684,2]
[360623186,1746906674249,-1746.81,0.00010684,2]
[360623187,1746906674259,-400.0,0.00010684,2]
[360623188,1746906674269,-807.94,0.00010684,2]
[360623189,1746906674279,-667.76,0.00010684,2]
[360623190,1746906674289,-400.0,0.00010684,2]
[360623191,1746906674298,-400.0,0.00010684,2]
[360623192,1746906674308,-1882.63,0.00010684,2]
[360623193,1746906674318,-1100.05,0.00010684,2]
[360623194,1746906674328,-400.0,0.00010684,2]
[360623195,1746906674338,-396.23874242,0.00010684,2]
[360623196,1746906674348,-494.13,0.00010684,2]
[360623197,1746906674358,-506.01231976,0.00010684,2]
[360623198,1746906674367,-403.69,0.00010684,2]
[360623199,1746906674377,-400.0,0.00010684,2]
[360623200,1746906674386,-401.84262436,0.00010684,2]
[360623201,1746906674397,-438.08,0.00010684,2]
[360623202,1746906674407,-665.28,0.00010684,2]
[360623203,1746906674416,-643.06,0.00010684,2]
[360623204,1746906674426,-692.72,0.00010684,2]
[360623205,1746906674436,-888.64,0.00010684,2]
[360623206,1746906674447,-1142.12,0.00010684,2]
[360623207,1746906674456,-1160.64,0.00010684,2]
[360623208,1746906674466,-400.0,0.00010684,2]
[360623209,1746906674476,-1235.06,0.00010684,2]
[360623210,1746906674485,-400.0,0.00010684,2]
[360623211,1746906674496,-163.48604625,0.00010684,2]
[360623212,1746906674506,-4110.99,0.00010684,2]
[360623213,1746906674516,-512.06,0.00010684,2]
[360623214,1746906674525,-408.04,0.00010684,2]
[360623215,1746906674535,-866.6,0.00010684,2]
[360623216,1746906674545,-400.0,0.00010684,2]
[360623217,1746906674557,-1197.32,0.00010684,2]
[360623218,1746906674568,-4277.51,0.00010684,2]
[360623219,1746906674578,-400.0,0.00010684,2]
[360623220,1746906674588,-400.0,0.00010684,2]
[360623221,1746906674598,-400.0,0.00010684,2]
[360623222,1746906674608,-852.33,0.00010684,2]
[360623223,1746906674617,-400.0,0.00010684,2]
[360623224,1746906674627,-1309.03,0.00010684,2]
[360623225,1746906674637,-1077.29,0.00010684,2]
[360623226,1746906674647,-7785.86,0.00010684,2]
[360623227,1746906674658,-400.0,0.00010684,2]
[360623228,1746906674668,-798.74,0.00010684,2]
[360623229,1746906674679,-178.87587577,0.00010684,2]
[360623230,1746906674688,-400.0,0.00010684,2]
[360623231,1746906674699,-2347.64,0.00010684,2]
[360623232,1746906674709,-722.49,0.00010684,2]
[360623233,1746906674720,-523.62,0.00010684,2]
[360623234,1746906674730,-400.0,0.00010684,2]
[360623235,1746906674740,-400.0,0.00010684,2]
[360623236,1746906674751,-400.0,0.00010684,2]
[360623237,1746906674761,-1540.79,0.00010684,2]
[360623238,1746906674771,-242.1445829,0.00010684,2]
[360623239,1746906674780,-633.73,0.00010684,2]
[360623240,1746906674791,-400.0,0.00010684,2]
[360623241,1746906674800,-415.52,0.00010684,2]
[360623242,1746906674810,-460.15,0.00010684,2]
[360623243,1746906674819,-1202.77,0.00010684,2]
[360623244,1746906674829,-671.11,0.00010684,2]
[360623245,1746906674838,-557.78,0.00010684,2]
[360623246,1746906674848,-8125.42,0.00010684,2]
[360623247,1746906674860,-455.9,0.00010684,2]
[360623248,1746906674869,-728.41,0.00010684,2]
[360623249,1746906674879,-903.04,0.00010684,2]
[360623250,1746906674889,-4052.84,0.00010684,2]
[360623251,1746906674899,-1722.78,0.00010684,2]
[360623252,1746906674910,-400.0,0.00010684,2]
[360623253,1746906674920,-400.0,0.00010684,2]
[360623254,1746906674930,-961.45,0.00010684,2]
[360623255,1746906674940,-400.0,0.00010684,2]
[360623256,1746906674951,-400.0,0.00010684,2]
[360623257,1746906674961,-513.69,0.00010684,2]
[360623258,1746906674971,-738.49,0.00010684,2]
[360623259,1746906674981,-1620.11,0.00010684,2]
[360623260,1746906674993,-1522.1,0.00010684,2]
[360623261,1746906675003,-855.77,0.00010684,2]
[360623262,1746906675013,-3617.99,0.00010684,2]
[360623263,1746906675023,-400.0,0.00010684,2]
[360623264,1746906675033,-1039.2,0.00010684,2]
[360623265,1746906675043,-828.14,0.00010684,2]
[360623266,1746906675053,-1521.55,0.00010684,2]
[360623267,1746906675063,-400.0,0.00010684,2]
[360623268,1746906675075,-483.77,0.00010684,2]
[360623269,1746906675086,-913.03,0.00010684,2]
[360623270,1746906675095,-2047.93,0.00010684,2]
[360623271,1746906675105,-400.0,0.00010684,2]
[360623272,1746906675117,-794.3,0.00010684,2]
[360623273,1746906675127,-974.46,0.00010684,2]
[360623274,1746906675136,-720.62,0.00010684,2]
[360623275,1746906675146,-400.0,0.00010684,2]
[360623276,1746906675156,-1418.47,0.00010684,2]
[360623277,1746906675166,-400.0,0.00010684,2]
[360623278,1746906675175,-400.0,0.00010684,2]
[360623279,1746906675186,-863.31,0.00010684,2]
[360623280,1746906675195,-480.68,0.00010684,2]
[360623281,1746906675205,-400.0,0.00010684,2]
[360623282,1746906675215,-1863.48,0.00010684,2]
[360623283,1746906675224,-619.24,0.00010684,2]
[360623284,1746906675234,-274.57314955,0.00010684,2]
[360623285,1746906675244,-1742.97,0.00010684,2]
[360623286,1746906675255,-400.0,0.00010684,2]
[360623287,1746906675265,-499.88,0.00010684,2]
[360623288,1746906675275,-400.0,0.00010684,2]
[360623289,1746906675285,-400.0,0.00010684,2]
[360623290,1746906675295,-629.14,0.00010684,2]
[360623291,1746906675304,-1689.1,0.00010684,2]
[360623292,1746906675314,-1471.66,0.00010684,2]
[360623293,1746906675324,-400.0,0.00010684,2]
[360623294,1746906675334,-400.0,0.00010684,2]
[360623295,1746906675344,-1375.35,0.00010684,2]
[360623296,1746906675354,-4432.98,0.00010684,2]
[360623297,1746906675363,-484.23,0.00010684,2]
[360623298,1746906675373,-719.53,0.00010684,2]
[360623299,1746906675382,-400.0,0.00010684,2]
[360623300,1746906675391,-1921.61,0.00010684,2]
[360623301,1746906675402,-400.0,0.00010684,2]
[360623302,1746906675411,-881.79,0.00010684,2]
[360623303,1746906675421,-739.18,0.00010684,2]
[360623304,1746906675431,-922.29,0.00010684,2]
[360623305,1746906675441,-2351.73,0.00010684,2]
[360623306,1746906675451,-893.91,0.00010684,2]
[360623307,1746906675462,-2022.22,0.00010684,2]
[360623308,1746906675472,-3693.92,0.00010684,2]
[360623309,1746906675482,-676.37,0.00010684,2]
[360623310,1746906675491,-1891.95,0.00010684,2]
[360623311,1746906675504,-970.32,0.00010684,2]
[360623312,1746906675514,-400.0,0.00010684,2]
[360623313,1746906675524,-1140.17,0.00010684,2]
[360623314,1746906675534,-436.7,0.00010684,2]
[360623315,1746906675543,-6166.4,0.00010684,2]
[360623316,1746906675554,-1278.01,0.00010684,2]
[360623317,1746906675566,-400.0,0.00010684,2]
[360623318,1746906675576,-416.85,0.00010684,2]
[360623319,1746906675585,-427.37,0.00010684,2]
[360623320,1746906675596,-1347.82,0.00010684,2]
[360623321,1746906675608,-793.93,0.00010684,2]
[360623322,1746906675619,-789.56,0.00010684,2]
[360623323,1746906675630,-922.84,0.00010684,2]
[360623324,1746906675641,-400.0,0.00010684,2]
[360623325,1746906675650,-400.0,0.00010684,2]
[360623326,1746906675660,-400.0,0.00010684,2]
[360623327,1746906675669,-445.82,0.00010684,2]
[360623328,1746906675679,-400.0,0.00010684,2]
[360623329,1746906675689,-1409.07,0.00010684,2]
[360623330,1746906675700,-1926.65,0.00010684,2]
[360623331,1746906675710,-2326.13,0.00010684,2]
[360623332,1746906675720,-8310.69,0.00010684,2]
[360623333,1746906675730,-400.0,0.00010684,2]
[360623334,1746906675740,-2542.91,0.00010684,2]
[360623335,1746906675751,-2015.99,0.00010684,2]
[360623336,1746906675760,-3912.6,0.00010684,2]
[360623337,1746906675772,-400.0,0.00010684,2]
[360623338,1746906675783,-447.46,0.00010684,2]
[360623339,1746906675792,-400.0,0.00010684,2]
[360623340,1746906675802,-2641.95,0.00010684,2]
[360623341,1746906675812,-2579.44,0.00010684,2]
[360623342,1746906675822,-705.43,0.00010684,2]
[360623343,1746906675831,-512.02,0.00010684,2]
[360623344,1746906675841,-661.8,0.00010684,2]
[360623345,1746906675851,-400.0,0.00010684,2]
[360623346,1746906675861,-557.25,0.00010684,2]
[360623347,1746906675871,-2704.17,0.00010684,2]
[360623348,1746906675881,-205.0,0.00010689,2]
[360623349,1746906675891,-205.0,0.00010689,2]
[360623350,1746906675900,-205.0,0.00010689,2]
[360623351,1746906675910,-205.0,0.00010689,2]
[360623352,1746906675920,-151.0,0.00010689,2]
[360623353,1746906675930,-992703.01643547,0.00010689,2]
[360623354,1746906675940,-1008633.8689264,0.0001069,2]
[360623355,1746906675950,-613.79811131,0.00010738,2]
[360623356,1746906675960,-287.69681971,0.00010952,2]
[360623357,1746906675972,-400.0,0.00010958,2]
[360623358,1746906675982,-457.42,0.00010958,2]
[360623359,1746906675992,-525.79,0.00010958,2]
[360623360,1746906676002,-490.3160183,0.00010958,2]
[360623361,1746906676012,-400.0,0.00010958,2]
[360623362,1746906676022,-400.0,0.00010958,2]
[360623363,1746906676032,-434.68,0.00010958,2]
[360623364,1746906676042,-400.0,0.00010958,2]
[360623365,1746906676052,-387.07696091,0.00010958,2]
[360623366,1746906676062,-478.83,0.00010958,2]
[360623367,1746906676072,-832.17,0.00010958,2]
[360623368,1746906676222,-400.0,0.00010958,2]
[360623369,1746906676233,-400.0,0.00010958,2]
[360623370,1746906676243,-400.0,0.00010958,2]
[360623371,1746906676252,-400.0,0.00010958,2]
[360623372,1746906676262,-824.8,0.00010958,2]
[360623373,1746906676271,-400.0,0.00010958,2]
[360623374,1746906676280,-739.55,0.00010958,2]
[360623375,1746906676289,-400.0,0.00010958,2]
[360623376,1746906676299,-1274.07,0.00010958,2]
[360623377,1746906676308,-954.18,0.00010958,2]
[360623378,1746906676317,-985.97,0.00010958,2]
[360623379,1746906676327,-400.0,0.00010958,2]
[360623380,1746906676337,-400.0,0.00010958,2]
[360623381,1746906676346,-453.4,0.00010958,2]
[360623382,1746906676356,-400.0,0.00010958,2]
[360623383,1746906676366,-400.0,0.00010958,2]
[360623384,1746906676376,-400.0,0.00010958,2]
[360623385,1746906676385,-504.97,0.00010958,2]
[360623386,1746906676396,-446.99,0.00010958,2]
[360623387,1746906676405,-722.59,0.00010958,2]
[360623388,1746906676415,-400.0,0.00010958,2]
[360623389,1746906676425,-400.0,0.00010958,2]
[360623390,1746906676435,-400.0,0.00010958,2]
[360623391,1746906676444,-640.39,0.00010958,2]
[360623392,1746906676454,-400.0,0.00010958,2]
[360623393,1746906676463,-400.0,0.00010958,2]
[360623394,1746906676473,-522.88,0.00010958,2]
[360623395,1746906676482,-400.0,0.00010958,2]
[360623396,1746906676492,-427.35,0.00010958,2]
[360623397,1746906676501,-539.65,0.00010958,2]
[360623398,1746906676511,-562.01,0.00010958,2]
[360623399,1746906676520,-400.0,0.00010958,2]
[360623400,1746906676531,-400.0,0.00010958,2]
[360623401,1746906676540,-1026.92,0.00010958,2]
[360623402,1746906676550,-400.0,0.00010958,2]
[360623403,1746906676563,-400.0,0.00010958,2]
[360623404,1746906676573,-1419.13,0.00010958,2]
[360623405,1746906676583,-489.84,0.00010958,2]
[360623406,1746906676592,-953.05,0.00010958,2]
[360623407,1746906676603,-695.87,0.00010958,2]
[360623408,1746906676613,-400.0,0.00010958,2]
[360623409,1746906676624,-400.0,0.00010958,2]
[360623410,1746906676635,-1151.25,0.00010958,2]
[360623411,1746906676644,-2025.76,0.00010958,2]
[360623412,1746906676654,-699.78,0.00010958,2]
[360623413,1746906676663,-400.0,0.00010958,2]
[360623414,1746906676672,-435.97,0.00010958,2]
[360623415,1746906676682,-400.0,0.00010958,2]
[360623416,1746906676691,-1951.67,0.00010958,2]
[360623417,1746906676700,-400.0,0.00010958,2]
[360623418,1746906676710,-781.59,0.00010958,2]
[360623419,1746906676719,-615.73,0.00010958,2]
[360623420,1746906676728,-400.0,0.00010958,2]
[360623421,1746906676738,-1746.81,0.00010958,2]
[360623422,1746906676748,-400.0,0.00010958,2]
[360623423,1746906676757,-807.94,0.00010958,2]
[360623424,1746906676766,-667.76,0.00010958,2]
[360623425,1746906676776,-400.0,0.00010958,2]
[360623426,1746906676785,-400.0,0.00010958,2]
[360623427,1746906676795,-1882.63,0.00010958,2]
[360623428,1746906676804,-1100.05,0.00010958,2]
[360623429,1746906676813,-400.0,0.00010958,2]
[360623430,1746906676822,-494.13,0.00010958,2]
[360623431,1746906676831,-403.69,0.00010958,2]
[360623432,1746906676841,-400.0,0.00010958,2]
[360623433,1746906676850,-438.08,0.00010958,2]
[360623434,1746906676860,-665.28,0.00010958,2]
[360623435,1746906676869,-643.06,0.00010958,2]
[360623436,1746906676879,-692.72,0.00010958,2]
[360623437,1746906676889,-888.64,0.00010958,2]
[360623438,1746906676898,-1142.12,0.00010958,2]
[360623439,1746906676908,-1160.64,0.00010958,2]
[360623440,1746906676917,-400.0,0.00010958,2]
[360623441,1746906676927,-1235.06,0.00010958,2]
[360623442,1746906676936,-400.0,0.00010958,2]
[360623443,1746906676945,-4110.99,0.00010958,2]
[360623444,1746906676955,-512.06,0.00010958,2]
[360623445,1746906676964,-408.04,0.00010958,2]
[360623446,1746906676973,-866.6,0.00010958,2]
[360623447,1746906676983,-400.0,0.00010958,2]
[360623448,1746906676994,-1197.32,0.00010958,2]
[360623449,1746906677003,-4277.51,0.00010958,2]
[360623450,1746906677013,-400.0,0.00010958,2]
[360623451,1746906677022,-400.0,0.00010958,2]
[360623452,1746906677032,-400.0,0.00010958,2]
[360623453,1746906677042,-852.33,0.00010958,2]
[360623454,1746906677051,-400.0,0.00010958,2]
[360623455,1746906677060,-1309.03,0.00010958,2]
[360623456,1746906677070,-1077.29,0.00010958,2]
[360623457,1746906677079,-7785.86,0.00010958,2]
[360623458,1746906677089,-400.0,0.00010958,2]
[360623459,1746906677098,-798.74,0.00010958,2]
[360623460,1746906677108,-400.0,0.00010958,2]
[360623461,1746906677117,-2347.64,0.00010958,2]
[360623462,1746906677127,-722.49,0.00010958,2]
[360623463,1746906677136,-523.62,0.00010958,2]
[360623464,1746906677146,-400.0,0.00010958,2]
[360623465,1746906677155,-400.0,0.00010958,2]
[360623466,1746906677164,-400.0,0.00010958,2]
[360623467,1746906677173,-1540.79,0.00010958,2]
[360623468,1746906677183,-633.73,0.00010958,2]
[360623469,1746906677193,-400.0,0.00010958,2]
[360623470,1746906677204,-415.52,0.00010958,2]
[360623471,1746906677213,-460.15,0.00010958,2]
[360623472,1746906677223,-1202.77,0.00010958,2]
[360623473,1746906677233,-671.11,0.00010958,2]
[360623474,1746906677242,-557.78,0.00010958,2]
[360623475,1746906677251,-8125.42,0.00010958,2]
[360623476,1746906677261,-455.9,0.00010958,2]
[360623477,1746906677270,-728.41,0.00010958,2]
[360623478,1746906677279,-903.04,0.00010958,2]
[360623479,1746906677288,-4052.84,0.00010958,2]
[360623480,1746906677298,-1722.78,0.00010958,2]
[360623481,1746906677308,-400.0,0.00010958,2]
[360623482,1746906677317,-400.0,0.00010958,2]
[360623483,1746906677327,-961.45,0.00010958,2]
[360623484,1746906677336,-400.0,0.00010958,2]
[360623485,1746906677345,-400.0,0.00010958,2]
[360623486,1746906677355,-513.69,0.00010958,2]
[360623487,1746906677365,-738.49,0.00010958,2]